bitfinex-derivatives/quotes_BTCF0:USTF0_20251208
["timestamp","ask_amount","ask_price","bid_price","bid_amount"]
[1765206785477,0.24072458,90330.0,90318.0,0.05]
[1765206785776,8.915e-05,90331.0,90318.0,0.05]
[1765206786281,0.0110708,90329.0,90318.0,0.05]
[1765206786875,0.22965388,90330.0,90319.0,0.011072]
[1765206787072,0.24072468,90330.0,90319.0,0.011072]
[1765206787272,0.0110712,90326.0,90318.0,0.05]
[1765206787472,0.24072458,90330.0,90318.0,0.05]
[1765206787672,0.0110712,90327.0,90318.0,0.05]
[1765206787882,0.22965388,90330.0,90318.0,0.054]
[1765206788084,8.915e-05,90331.0,90318.0,0.054]
[1765206788273,8.915e-05,90331.0,90330.0,0.09918]
[1765206788586,0.001,90330.0,90318.0,0.053]
[1765206788885,0.0110713,90326.0,90318.0,0.053]
[1765206789066,0.10091,90319.0,90318.0,0.053]
[1765206789266,0.26134388,90330.0,90300.0,0.0110743]
[1765206789267,0.26034388,90330.0,90300.0,0.0110743]
[1765206789477,0.22965388,90320.0,90302.0,0.01134083]
[1765206789675,0.0110729,90313.0,90302.0,0.01134083]
[1765206789869,0.00016607,90326.0,90302.0,0.01134083]
[1765206789870,0.00010336,90312.0,90311.0,0.09918]
[1765206791979,0.00110336,90312.0,90311.0,0.10218]
[1765206792672,0.00110336,90312.0,90311.0,0.05178]
[1765206792873,0.00110336,90312.0,90311.0,0.10387]
[1765206794681,0.00016607,90326.0,90325.0,0.10061]
[1765206795076,0.09969607,90326.0,90316.0,0.0110724]
[1765206795285,0.24089115,90326.0,90315.0,0.0110725]
[1765206795475,0.22981995,90326.0,90314.0,0.02954]
[1765206795682,0.00016607,90326.0,90325.0,0.10061]
[1765206796386,0.04881607,90326.0,90325.0,0.04852]
[1765206796681,0.0110727,90314.0,90313.0,0.10061]
[1765206796874,0.0597227,90314.0,90313.0,0.10061]
[1765206797277,0.0110734,90309.0,90304.0,0.05157649]
[1765206797482,0.0110736,90306.0,90304.0,0.05157649]
[1765206797678,0.22965388,90314.0,90244.0,0.02954]
[1765206797679,0.0282,90286.0,90244.0,0.02954]
[1765206797879,0.09953,90269.0,90265.0,0.01438071]
[1765206798179,0.22982005,90278.0,90265.0,0.00330211]
[1765206798380,0.09953,90269.0,90265.0,0.00330211]
[1765206798776,0.09963601,90269.0,90265.0,0.00330211]
[1765206800181,0.00010601,90269.0,90268.0,0.10335226]
[1765206800784,0.00410601,90269.0,90268.0,0.10435226]
[1765206801181,0.05275601,90269.0,90268.0,0.00374226]
[1765206801380,0.05275601,90269.0,90268.0,0.10435226]
[1765206801381,0.00410601,90269.0,90268.0,0.10435226]
[1765206801683,0.00110601,90269.0,90268.0,0.10335226]
[1765206802085,0.00016617,90278.0,90277.0,0.1116872]
[1765206802282,0.0110742,90302.0,90288.0,0.02954]
[1765206802583,0.22965388,90320.0,90288.0,0.02954]
[1765206802584,0.22965388,90300.0,90298.0,0.04852]
[1765206802890,0.22965388,90310.0,90288.0,0.02954]
[1765206803091,0.0110733,90309.0,90290.0,0.0110755]
[1765206803278,0.0110738,90305.0,90290.0,0.01124167]
[1765206803588,0.0110742,90302.0,90290.0,0.00016617]
[1765206803975,0.22965388,90300.0,90290.0,0.00016617]
[1765206804289,0.00016617,90309.0,90290.0,0.22982005]
[1765206804481,0.00016617,90309.0,90308.0,0.1116834]
[1765206804678,0.00016617,90309.0,90308.0,0.10061]
[1765206805475,0.24072458,90330.0,90308.0,0.11169371]
[1765206805675,0.22965388,90330.0,90310.0,0.22965388]
[1765206805875,0.523,90358.0,90317.0,0.0110722]
[1765206805876,0.0110703,90333.0,90317.0,0.0110722]
[1765206806084,0.0110713,90325.0,90324.0,0.10061]
[1765206806283,0.24072458,90330.0,90314.0,0.0110726]
[1765206806481,0.24072458,90330.0,90308.0,0.01103155]
[1765206806482,0.02535211,90329.0,90328.0,0.10061]
[1765206806680,0.00016608,90331.0,90330.0,0.10061]
[1765206807693,0.01123668,90331.0,90330.0,0.10061]
[1765206807883,0.01123668,90331.0,90328.0,0.001]
[1765206808482,0.01323668,90331.0,90320.0,0.02954]
[1765206808680,0.0110718,90321.0,90320.0,0.02954]
[1765206808983,0.09953,90314.0,90313.0,0.00016608]
[1765206809982,0.12489549,90314.0,90313.0,0.00016608]
[1765206810177,0.0282,90304.0,90268.0,0.00274226]
[1765206810390,0.22965388,90278.0,90268.0,0.00274226]
[1765206810589,0.0110751,90295.0,90268.0,0.00274226]
[1765206810590,0.0110751,90295.0,90272.0,0.02954]
[1765206810889,0.0110761,90286.0,90273.0,0.0110776]
[1765206811090,0.0110761,90286.0,90285.0,0.04852]
[1765206811282,0.0110761,90286.0,90285.0,0.10061]
[1765206811888,0.0110767,90282.0,90276.0,0.00016608]
[1765206812394,0.0110771,90278.0,90276.0,0.00016608]
[1765206813386,0.09953,90277.0,90276.0,0.00016608]
[1765206814791,0.10253,90277.0,90276.0,0.00116608]
[1765206815188,0.12815654,90277.0,90276.0,0.00116608]
[1765206815790,0.12815654,90277.0,90265.0,0.00330211]
[1765206815791,0.1106082,90269.0,90265.0,0.00330211]
[1765206816296,0.13622899,90269.0,90265.0,0.00330211]
[1765206816597,0.1106099,90255.0,90254.0,0.01091966]
[1765206816801,0.22982005,90264.0,90240.0,0.02954]
[1765206817095,0.22965388,90250.0,90232.0,0.01134157]
[1765206817298,0.22965388,90250.0,90224.0,0.0406236]
[1765206818085,0.22965388,90250.0,90240.0,0.004]
[1765206818296,0.22965388,90250.0,90241.0,0.0110816]
[1765206818494,0.22965388,90250.0,90246.0,0.011081]
[1765206818688,0.24073318,90260.0,90250.0,0.0110804]
[1765206818891,0.02558807,90259.0,90252.0,0.0110802]
[1765206819091,0.02558807,90258.0,90252.0,0.0110802]
[1765206819287,0.02558807,90257.0,90241.0,0.0110815]
[1765206819492,0.001,90250.0,90249.0,0.04852]
[1765206819688,0.001,90250.0,90249.0,0.0596006]
[1765206820198,0.001,90250.0,90249.0,0.1116906]
[1765206820398,0.001,90257.0,90241.0,0.006]
[1765206820590,0.001,90257.0,90256.0,0.13015]
[1765206820988,0.00016617,90264.0,90263.0,0.1116889]
[1765206821291,0.00016617,90264.0,90249.0,0.0110805]
[1765206821292,0.09953,90250.0,90249.0,0.005]
[1765206821596,0.0141,90272.0,90249.0,0.005]
[1765206821597,0.08701697,90263.0,90249.0,0.10561]
[1765206821785,0.04865,90262.0,90249.0,0.005]
[1765206822095,0.0110792,90261.0,90249.0,0.005]
[1765206822294,0.0110791,90262.0,90249.0,0.005]
[1765206822497,0.0110795,90259.0,90249.0,0.005]
[1765206822703,0.00016617,90265.0,90249.0,0.005]
[1765206822704,0.001,90257.0,90256.0,0.12718]
[1765206822898,0.00016617,90265.0,90264.0,0.1041288]
[1765206823093,0.09529,90257.0,90256.0,0.004]
[1765206823592,0.0485,90250.0,90249.0,0.001]
[1765206823794,0.09529,90250.0,90249.0,0.001]
[1765206824198,0.0110806,90249.0,90212.0,0.0110851]
[1765206824496,0.1063733,90227.0,90217.0,0.01128913]
[1765206824799,0.0110824,90235.0,90217.0,0.0113106]
[1765206824996,0.24073618,90236.0,90235.0,0.09305]
[1765206825197,0.0110823,90236.0,90235.0,0.09305]
[1765206825598,0.011083,90230.0,90223.0,0.00013871]
[1765206826001,0.09529,90227.0,90223.0,0.00013871]
[1765206826588,0.011083,90230.0,90226.0,0.00823928]
[1765206826589,0.012083,90230.0,90226.0,0.00823928]
[1765206826789,0.001,90230.0,90229.0,0.09305]
[1765206827404,0.0110823,90236.0,90229.0,0.09305]
[1765206827597,0.011083,90230.0,90226.0,0.00823928]
[1765206827999,0.0110826,90234.0,90226.0,0.00823928]
[1765206828315,0.22965388,90240.0,90226.0,0.00823928]
[1765206828603,0.0110817,90240.0,90230.0,0.011083]
[1765206828791,0.0110817,90240.0,90239.0,0.09305]
[1765206829408,0.0110816,90241.0,90234.0,0.04628]
[1765206829910,0.00016617,90245.0,90244.0,0.04628]
[1765206830094,0.00016617,90245.0,90244.0,0.09305]
[1765206830292,0.01124737,90245.0,90230.0,0.003]
[1765206830508,0.00016617,90245.0,90242.0,0.0110814]
[1765206830695,0.00016617,90245.0,90244.0,0.04628]
[1765206830892,0.00016617,90245.0,90230.0,0.22468538]
[1765206831203,0.0110798,90256.0,90247.0,0.0110808]
[1765206831397,0.0110798,90256.0,90240.0,0.22965388]
[1765206831601,0.0110798,90256.0,90248.0,0.0110807]
[1765206831802,0.0110796,90258.0,90250.0,0.0110804]
[1765206831994,0.0110803,90252.0,90230.0,0.22965388]
[1765206832308,0.106371,90246.0,90245.0,0.00016617]
[1765206832511,0.09529,90246.0,90245.0,0.00016617]
[1765206833810,0.09529,90246.0,90245.0,0.00216617]
[1765206834396,0.09529,90246.0,90226.0,0.00323928]
[1765206834601,0.09529,90227.0,90226.0,0.00323928]
[1765206834806,0.02858,90240.0,90226.0,0.01432268]
[1765206835110,0.02858,90240.0,90226.0,0.00323928]
[1765206835305,0.0110822,90237.0,90226.0,0.00323928]
[1765206835499,0.3181612,90240.0,90226.0,0.00323928]
[1765206835695,0.011083,90230.0,90226.0,0.00323928]
[1765206835898,0.0485,90227.0,90226.0,0.00323928]
[1765206836104,0.0485,90227.0,90226.0,0.00823928]
[1765206836308,0.09529,90227.0,90226.0,0.00823928]
[1765206836909,0.09629,90227.0,90226.0,0.00823928]
[1765206837811,0.001,90227.0,90226.0,0.00823928]
[1765206838199,0.09629,90227.0,90226.0,0.00823928]
[1765206838600,0.0495,90227.0,90226.0,0.00723928]
[1765206838797,0.001,90227.0,90226.0,0.00723928]
[1765206839203,0.0495,90227.0,90226.0,0.00723928]
[1765206839611,0.09629,90227.0,90226.0,0.00723928]
[1765206840002,0.09629,90227.0,90226.0,0.00323928]
[1765206840202,0.09629,90227.0,90226.0,0.00723928]
[1765206841611,0.09529,90187.0,90186.0,0.00272229]
[1765206842414,0.02858,90195.0,90186.0,0.02194229]
[1765206842602,0.05576,90187.0,90186.0,0.00272229]
[1765206842918,0.05586607,90187.0,90186.0,0.00272229]
[1765206843105,0.05586607,90187.0,90186.0,0.01072229]
[1765206843106,0.11268607,90187.0,90186.0,0.01072229]
[1765206843512,0.00110607,90187.0,90186.0,0.05988229]
[1765206843902,0.00110607,90187.0,90186.0,0.06588]
[1765206844815,0.00110607,90187.0,90186.0,0.006]
[1765206845315,0.00016627,90196.0,90195.0,0.05988]
[1765206845703,0.05592627,90196.0,90180.0,0.011089]
[1765206845909,0.05592627,90196.0,90180.0,0.3006702]
[1765206846308,0.001,90187.0,90186.0,0.05988]
[1765206847006,0.02858,90240.0,90224.0,0.05988]
[1765206847317,0.0110826,90233.0,90224.0,0.05988]
[1765206847518,0.0110826,90233.0,90224.0,0.07118828]
[1765206847715,0.011082,90238.0,90224.0,0.07118828]
[1765206847920,0.011082,90238.0,90224.0,0.05988]
[1765206848522,0.011082,90238.0,90224.0,0.07117051]
[1765206848716,0.02874627,90240.0,90225.0,0.0110835]
[1765206848919,0.02874627,90240.0,90222.0,0.00016627]
[1765206848920,0.011082,90239.0,90222.0,0.00016627]
[1765206849127,0.02874627,90240.0,90229.0,0.2895812]
[1765206849313,0.09041627,90240.0,90222.0,0.00016627]
[1765206849513,0.007,90238.0,90222.0,0.00016627]
[1765206849710,0.0110827,90232.0,90222.0,0.01138012]
[1765206850215,0.11158,90223.0,90222.0,0.00016627]
[1765206851311,0.0110867,90200.0,90177.0,0.01879889]
[1765206851518,0.0110867,90200.0,90177.0,0.00770949]
[1765206851519,0.11158,90192.0,90177.0,0.00770949]
[1765206851718,0.11158,90192.0,90178.0,0.0110893]
[1765206852220,0.0110883,90187.0,90178.0,0.01121719]
[1765206852420,0.0110883,90187.0,90177.0,0.00770949]
[1765206852625,0.05384,90178.0,90177.0,0.00970949]
[1765206852921,0.10728,90178.0,90177.0,0.00970949]
[1765206853328,0.10728,90178.0,90177.0,0.00770949]
[1765206853715,0.03404,90180.0,90177.0,0.00770949]
[1765206853918,0.05384,90178.0,90177.0,0.00770949]
[1765206854120,0.10728,90178.0,90177.0,0.00770949]
[1765206855017,0.10828,90178.0,90177.0,0.00770949]
[1765206855726,0.05484,90178.0,90177.0,0.00770949]
[1765206855929,0.001,90178.0,90177.0,0.00770949]
[1765206856432,0.001,90178.0,90177.0,0.06164949]
[1765206856826,0.10828,90178.0,90177.0,0.00770949]
[1765206857233,0.1183705,90169.0,90168.0,0.00313154]
[1765206857431,0.03404,90160.0,90140.0,0.28969335]
[1765206857627,0.03404,90160.0,90148.0,1.5]
[1765206858227,0.118373,90148.0,90140.0,0.00011215]
[1765206858832,0.118373,90148.0,90141.0,1.5]
[1765206859030,0.118373,90148.0,90140.0,0.00011215]
[1765206859226,0.10728,90148.0,90140.0,0.00011215]
[1765206859734,0.001,90148.0,90147.0,0.00393241]
[1765206860039,0.001,90148.0,90147.0,0.07329241]
[1765206860232,0.001,90148.0,90147.0,0.00393241]
[1765206860233,0.10828,90148.0,90147.0,0.00393241]
[1765206860439,0.001,90148.0,90147.0,0.03861241]
[1765206860625,0.001,90148.0,90147.0,0.07329241]
[1765206861028,0.001,90148.0,90147.0,0.03861241]
[1765206861228,0.05484,90148.0,90147.0,0.00393241]
[1765206861438,0.001,90148.0,90147.0,0.07329241]
[1765206861830,0.00016637,90163.0,90162.0,0.0804513]
[1765206862028,0.03404,90208.0,90194.0,0.03468]
[1765206862338,0.011085,90214.0,90194.0,0.03468]
[1765206862540,0.011085,90214.0,90190.0,0.2895812]
[1765206862541,0.03404,90224.0,90196.0,0.0110871]
[1765206863035,0.00016628,90219.0,90201.0,0.00016628]
[1765206863237,0.00016628,90219.0,90218.0,0.03468]
[1765206863422,0.00016628,90219.0,90218.0,0.06936]
[1765206864026,0.32217506,90240.0,90219.0,0.0110842]
[1765206864226,0.32217506,90240.0,90224.0,0.0110836]
[1765206864446,0.01108,90255.0,90224.0,0.01131896]
[1765206864644,0.01108,90255.0,90219.0,0.00916]
[1765206864645,0.0110802,90253.0,90231.0,0.0110827]
[1765206864844,0.0110819,90239.0,90212.0,0.0110851]
[1765206865031,0.10728,90217.0,90216.0,0.00016628]
[1765206865232,0.006,90219.0,90216.0,0.00016628]
[1765206865738,0.10728,90217.0,90216.0,0.00016628]
[1765206866040,0.05384,90217.0,90216.0,0.00016628]
[1765206866636,0.05384,90217.0,90216.0,0.00216628]
[1765206866637,0.1183646,90217.0,90216.0,0.00216628]
[1765206867032,0.001,90219.0,90216.0,0.00216628]
[1765206867940,0.10728,90217.0,90216.0,0.00216628]
[1765206868246,0.1193646,90217.0,90216.0,0.00216628]
[1765206868633,0.001,90217.0,90216.0,0.00216628]
[1765206868833,0.00016628,90226.0,90225.0,0.03613]
[1765206869438,0.00016628,90226.0,90216.0,0.00216628]
[1765206869836,0.001,90217.0,90216.0,0.00216628]
[1765206870343,0.00016628,90226.0,90225.0,0.0833436]
[1765206870540,0.0110811,90246.0,90220.0,0.2895812]
[1765206870930,0.0110804,90251.0,90236.0,0.0110822]
[1765206871131,0.0110793,90261.0,90230.0,0.2895812]
[1765206871336,0.0110797,90257.0,90230.0,0.2895812]
[1765206871547,0.00016628,90252.0,90251.0,0.03613]
[1765206871746,0.00016628,90252.0,90251.0,0.07226]
[1765206871932,0.00016628,90252.0,90234.0,0.45720628]
[1765206872642,0.00016628,90252.0,90241.0,0.0110816]
[1765206872831,0.00016628,90252.0,90251.0,0.07226]
[1765206873037,0.2895812,90300.0,90251.0,0.07226]
[1765206873237,0.0110759,90288.0,90270.0,0.011078]
[1765206873442,0.0110753,90293.0,90270.0,0.011078]
[1765206873644,0.0110747,90298.0,90278.0,0.0110771]
[1765206873843,0.03404,90304.0,90277.0,0.0110771]
[1765206873844,0.0110746,90299.0,90277.0,0.0110771]
[1765206874048,0.00016619,90291.0,90277.0,0.0110771]
[1765206874239,0.00016619,90291.0,90281.0,0.0110766]
[1765206874746,0.00016619,90291.0,90286.0,0.0110761]
[1765206874944,0.00016619,90291.0,90277.0,0.30095154]
[1765206875144,0.00016619,90291.0,90278.0,0.011077]
[1765206875341,0.005,90287.0,90281.0,0.001]
[1765206875543,0.03904,90287.0,90281.0,0.001]
[1765206875733,0.005,90287.0,90281.0,0.0120766]
[1765206876242,0.00016619,90291.0,90290.0,0.03613]
[1765206876243,0.00616619,90291.0,90290.0,0.03613]
[1765206876636,0.00616619,90291.0,90290.0,0.07226]
[1765206876847,0.0110722,90318.0,90278.0,0.001]
[1765206876848,0.2895812,90330.0,90278.0,0.001]
[1765206877046,0.0110717,90322.0,90302.0,0.011074]
[1765206877241,0.03948,90337.0,90305.0,0.0110736]
[1765206877242,0.0110719,90320.0,90305.0,0.0110736]
[1765206877446,0.03948,90337.0,90305.0,0.0110736]
[1765206877645,0.0110714,90324.0,90310.0,0.2895812]
[1765206877840,0.01123739,90325.0,90310.0,0.2895812]
[1765206878046,0.01123739,90325.0,90306.0,0.01123969]
[1765206878245,0.00016609,90325.0,90309.0,0.0110732]
[1765206878549,0.00016609,90325.0,90311.0,0.011073]
[1765206878750,0.00016609,90325.0,90314.0,0.0110725]
[1765206878936,0.00016609,90325.0,90310.0,0.2895812]
[1765206879141,0.00116609,90325.0,90310.0,0.2895812]
[1765206879344,0.011072,90320.0,90306.0,0.00016609]
[1765206879547,0.0451118,90321.0,90306.0,0.00016609]
[1765206879747,0.0110723,90317.0,90306.0,0.00016609]
[1765206880051,0.0451118,90321.0,90307.0,0.2895812]
[1765206880249,0.011072,90320.0,90307.0,0.2895812]
[1765206880552,0.03404,90321.0,90307.0,0.2895812]
[1765206880751,0.03404,90321.0,90306.0,0.00016609]
[1765206880949,0.05384,90307.0,90306.0,0.00016609]
[1765206881148,0.10728,90307.0,90306.0,0.00016609]
[1765206881454,0.10728,90307.0,90306.0,0.00116609]
[1765206882147,0.10728,90307.0,90306.0,0.00016609]
[1765206882352,0.10728,90307.0,90306.0,0.00216609]
[1765206882755,0.1183535,90307.0,90306.0,0.00216609]
[1765206883049,0.10522,90291.0,90290.0,0.00110755]
[1765206883456,0.011074,90303.0,90290.0,0.00110755]
[1765206883752,0.03348,90304.0,90290.0,0.00110755]
[1765206883956,0.044554,90304.0,90290.0,0.00110755]
[1765206884347,0.10522,90291.0,90290.0,0.00110755]
[1765206885350,0.10622,90291.0,90290.0,0.00510755]
[1765206885547,0.10522,90289.0,90288.0,3.64e-06]
[1765206886447,0.10522,90289.0,90272.0,0.00011576]
[1765206886448,0.10522,90273.0,90272.0,0.00011576]
[1765206888154,0.00016609,90282.0,90273.0,0.0110777]
[1765206888351,0.10522,90273.0,90272.0,0.00011576]
[1765206888550,0.10522,90273.0,90272.0,0.00111576]
[1765206889163,0.10522,90273.0,90272.0,0.00011576]
[1765206889751,0.00016609,90282.0,90273.0,0.0110777]
[1765206889949,0.00016609,90282.0,90272.0,0.00011576]
[1765206889950,0.00016609,90282.0,90276.0,0.0110773]
[1765206890158,0.00016609,90282.0,90272.0,0.00011576]
[1765206890550,0.05173,90273.0,90272.0,0.00011576]
[1765206890755,0.10522,90273.0,90272.0,0.00211576]
[1765206891549,0.10522,90273.0,90272.0,0.01319356]
[1765206891753,0.10522,90273.0,90272.0,0.00211576]
[1765206891956,0.1162977,90273.0,90272.0,0.00211576]
[1765206892265,0.10522,90264.0,90263.0,3.95e-06]
[1765206893160,0.10533576,90264.0,90263.0,3.95e-06]
[1765206893860,0.10633576,90264.0,90263.0,0.00400395]
[1765206896359,0.11741456,90264.0,90263.0,0.00400395]
[1765206896559,0.10633576,90264.0,90263.0,0.00400395]
[1765206896770,0.05284576,90264.0,90263.0,0.00400395]
[1765206897560,0.10633576,90264.0,90263.0,0.00400395]
[1765206899271,0.10633576,90264.0,90263.0,0.03357591]
[1765206899765,0.044556,90287.0,90263.0,0.06132395]
[1765206899962,0.044556,90287.0,90276.0,0.02969901]
[1765206900272,0.09885,90279.0,90278.0,0.02969901]
[1765206900563,0.09885,90279.0,90270.0,0.03951247]
[1765206900564,0.09885,90278.0,90270.0,0.03951247]
[1765206900761,0.09885,90275.0,90271.0,0.03951247]
[1765206900961,0.03348,90287.0,90272.0,0.0110778]
[1765206900962,0.00116609,90282.0,90272.0,0.0110778]
[1765206901160,0.04728,90272.0,90266.0,0.0703472]
[1765206901363,0.00116609,90282.0,90269.0,0.02486]
[1765206901570,0.10001609,90282.0,90281.0,0.02973683]
[1765206902064,0.10001609,90282.0,90265.0,0.0396491]
[1765206902065,0.0110784,90267.0,90265.0,0.0396491]
[1765206902265,0.09885,90264.0,90256.0,0.0396491]
[1765206902765,0.09885,90264.0,90251.0,0.01135116]
[1765206902766,0.0110784,90267.0,90263.0,3.95e-06]
[1765206903374,0.02891,90270.0,90240.0,0.23136714]
[1765206903375,0.09885,90243.0,90242.0,0.0396491]
[1765206903568,0.09885,90241.0,90240.0,0.00110816]
[1765206904278,0.0110825,90235.0,90230.0,0.0396491]
[1765206904458,0.09885,90220.0,90219.0,0.0396491]
[1765206904765,0.09885,90217.0,90216.0,9.462e-05]
[1765206904960,0.09885,90217.0,90216.0,4.62e-06]
[1765206905160,0.02891,90225.0,90210.0,0.00016619]
[1765206905161,0.1099353,90211.0,90210.0,0.00016619]
[1765206905365,0.09885,90199.0,90198.0,1.5]
[1765206905561,0.09885,90199.0,90191.0,0.0508186]
[1765206905562,0.09885,90199.0,90191.0,0.01091739]
[1765206905767,0.09885,90199.0,90189.0,0.26990808]
[1765206906069,0.04728,90191.0,90190.0,1.5]
[1765206906369,0.09885,90191.0,90190.0,1.5]
[1765206906569,0.04728,90191.0,90190.0,1.5]
[1765206906868,9.085e-05,90198.0,90197.0,0.04705]
[1765206907169,0.09885,90191.0,90190.0,1.5]
[1765206907875,0.09985,90191.0,90190.0,0.004]
[1765206909264,0.09885,90185.0,90184.0,1.5]
[1765206909458,0.09885,90182.0,90181.0,0.00016629]
[1765206909658,0.09885,90160.0,90151.0,0.09004421]
[1765206909871,0.02891,90176.0,90159.0,0.04705]
[1765206910071,0.07619,90160.0,90152.0,1.5]
[1765206910467,0.07619,90160.0,90148.0,0.01133723]
[1765206910882,0.09885,90149.0,90148.0,0.01133723]
[1765206911066,0.09894462,90149.0,90148.0,0.01133723]
[1765206911267,0.09894462,90149.0,90148.0,0.00011315]
[1765206912677,9.462e-05,90149.0,90148.0,0.10066315]
[1765206912977,0.001,90160.0,90159.0,0.10055]
[1765206913177,0.23025898,90180.0,90148.0,0.00011315]
[1765206913178,0.02891,90192.0,90150.0,0.23025898]
[1765206913374,0.23025898,90180.0,90160.0,0.02413]
[1765206913573,0.23025898,90180.0,90164.0,0.011091]
[1765206914275,0.23025898,90180.0,90150.0,0.23025898]
[1765206914276,0.00016639,90181.0,90163.0,0.00016639]
[1765206914480,0.00016639,90181.0,90180.0,0.10055]
[1765206914773,0.23025898,90210.0,90193.0,0.0110875]
[1765206914967,0.0110838,90223.0,90200.0,0.23025898]
[1765206915274,0.23025898,90220.0,90190.0,0.23025898]
[1765206915478,0.23025898,90220.0,90200.0,0.23025898]
[1765206915675,0.02959,90224.0,90207.0,0.0110857]
[1765206915873,0.00016628,90219.0,90207.0,0.0110857]
[1765206916068,0.00016628,90219.0,90209.0,0.0110855]
[1765206916269,0.00016628,90219.0,90218.0,0.10055]
[1765206916680,0.02959,90256.0,90219.0,0.02413]
[1765206916877,0.23025898,90250.0,90220.0,0.23025898]
[1765206917174,0.0110799,90255.0,90232.0,0.0110827]
[1765206917680,0.00016628,90253.0,90234.0,0.00016628]
[1765206917872,0.00016628,90253.0,90243.0,0.0110812]
[1765206918067,0.00016628,90253.0,90247.0,0.0110808]
[1765206918391,0.00016628,90253.0,90240.0,0.23025898]
[1765206918392,0.00016628,90253.0,90252.0,0.10055]
[1765206919369,0.02959,90272.0,90255.0,0.10055]
[1765206919573,0.011077,90279.0,90256.0,0.0110797]
[1765206919779,0.0110795,90259.0,90247.0,0.001]
[1765206919976,0.10281,90248.0,90247.0,0.001]
[1765206920378,0.1138919,90239.0,90238.0,0.00016618]
[1765206920568,0.10281,90239.0,90238.0,0.00016618]
[1765206920968,0.02959,90252.0,90238.0,0.00016618]
[1765206921169,0.05129,90239.0,90238.0,0.00016618]
[1765206921374,0.1138919,90239.0,90238.0,0.00016618]
[1765206921575,0.02959,90236.0,90213.0,0.00010807]
[1765206921775,0.0110835,90226.0,90213.0,0.00010807]
[1765206922069,0.10281,90214.0,90213.0,0.00010807]
[1765206922277,0.02959,90202.0,90182.0,0.0396491]
[1765206922479,0.05129,90189.0,90183.0,0.00016628]
[1765206922685,0.05129,90189.0,90184.0,1.5]
[1765206923078,0.23025898,90200.0,90184.0,1.5]
[1765206923278,9.055e-05,90199.0,90184.0,1.5110886]
[1765206923574,0.10281,90185.0,90184.0,1.5]
[1765206924087,9.055e-05,90199.0,90184.0,1.5]
[1765206924473,9.055e-05,90199.0,90183.0,0.00016628]
[1765206924474,0.10281,90185.0,90183.0,0.00016628]
[1765206924682,0.10281,90184.0,90183.0,0.00016628]
[1765206925870,0.23025898,90194.0,90174.0,0.03827]
[1765206925871,0.10281,90175.0,90174.0,0.03827]
[1765206926076,0.10291144,90175.0,90174.0,0.03827]
[1765206926276,0.10291144,90175.0,90151.0,1.5]
[1765206926477,0.00010144,90175.0,90151.0,1.5]
[1765206926785,0.01119124,90175.0,90153.0,0.0110924]
[1765206926981,0.23025898,90170.0,90156.0,0.011092]
[1765206928082,0.01125638,90173.0,90155.0,0.00016628]
[1765206928083,0.00016628,90173.0,90155.0,0.00016628]
[1765206928276,0.00016628,90173.0,90162.0,0.0110912]
[1765206928476,0.00016628,90173.0,90155.0,0.00016628]
[1765206928785,0.00016628,90173.0,90164.0,0.011091]
[1765206929384,0.00016628,90173.0,90172.0,0.10055]
[1765206930980,0.00116628,90173.0,90172.0,0.10055]
[1765206931790,0.00016628,90173.0,90172.0,0.10255]
[1765206933592,0.00010144,90175.0,90174.0,0.10055]
[1765206933795,0.23025898,90200.0,90172.0,0.002]
[1765206933996,0.23025898,90200.0,90184.0,0.0110885]
[1765206934287,0.23025898,90200.0,90187.0,0.0110882]
[1765206935296,0.10281,90185.0,90184.0,0.00016628]
[1765206936986,0.1138985,90185.0,90184.0,0.00016628]
[1765206937690,0.02959,90192.0,90184.0,0.05313628]
[1765206937895,0.02959,90192.0,90185.0,0.0110885]
[1765206938088,0.23025898,90200.0,90188.0,0.0110881]
[1765206938290,0.05129,90185.0,90184.0,0.00216628]
[1765206938489,0.05129,90185.0,90184.0,0.00016628]
[1765206938794,0.05129,90185.0,90184.0,0.00216628]
[1765206938992,0.00016628,90203.0,90184.0,0.00216628]
[1765206939293,0.00016628,90203.0,90191.0,0.0110877]
[1765206939701,0.00016628,90203.0,90184.0,0.00216628]
[1765206939899,0.00016628,90203.0,90196.0,0.011087]
[1765206940195,0.00016628,90203.0,90191.0,0.0110876]
[1765206940499,0.00016628,90203.0,90197.0,0.0110869]
[1765206940697,0.00016628,90203.0,90193.0,0.0110874]
[1765206940906,0.00016628,90203.0,90184.0,0.00216628]
[1765206940907,0.00016628,90203.0,90202.0,0.10055]
[1765206941102,0.10281,90191.0,90184.0,0.00016628]
[1765206941395,0.10281,90191.0,90189.0,0.011088]
[1765206941800,0.00016628,90203.0,90193.0,0.001]
[1765206941801,0.00316628,90203.0,90193.0,0.001]
[1765206942096,0.1011,90194.0,90193.0,0.001]
[1765206942498,0.00016628,90203.0,90193.0,0.0570375]
[1765206942693,0.00016628,90203.0,90193.0,0.04595]
[1765206943492,0.00016628,90203.0,90202.0,0.04595]
[1765206943803,0.00016628,90203.0,90202.0,0.12373]
[1765206944298,0.0110839,90223.0,90210.0,0.0110854]
[1765206944500,0.0110839,90223.0,90202.0,0.02939]
[1765206944501,0.04846,90211.0,90208.0,0.0110856]
[1765206945098,0.04846,90211.0,90200.0,0.23025898]
[1765206945099,0.04846,90211.0,90204.0,0.0110861]
[1765206945400,0.00016628,90217.0,90216.0,0.09434]
[1765206945597,0.09827,90204.0,90203.0,0.03091]
[1765206946396,0.1093562,90204.0,90203.0,0.03091]
[1765206947099,0.1093562,90204.0,90203.0,0.03047608]
[1765206947302,0.1093568,90199.0,90198.0,0.00016628]
[1765206947802,0.09827,90199.0,90198.0,0.00016628]
[1765206948398,0.004,90204.0,90203.0,0.09434]
[1765206948704,0.0110852,90212.0,90203.0,0.09434]
[1765206949695,0.02933,90216.0,90203.0,0.09434]
[1765206949895,0.0110852,90213.0,90203.0,0.11984]
[1765206950096,0.0404147,90216.0,90203.0,0.11984]
[1765206950403,0.0110847,90216.0,90203.0,0.11984]
[1765206950603,0.23025898,90220.0,90203.0,0.11984]
[1765206950807,0.23025898,90230.0,90203.0,0.0265]
[1765206950992,0.09827,90204.0,90203.0,0.0661491]
[1765206951198,0.09827,90204.0,90203.0,0.0265]
[1765206951597,0.09827,90204.0,90203.0,0.0255]
[1765206952100,0.04846,90204.0,90203.0,0.0255]
[1765206952495,0.04846,90204.0,90203.0,0.0265]
[1765206952897,0.23025898,90220.0,90203.0,0.0375862]